bitfinex/quotes_SOLUSD_20251007
["timestamp","ask_amount","ask_price","bid_price","bid_amount"]
[1759851734005,21.51,222.87,222.71,34.96]
[1759851734006,7.77772258,222.8,222.71,34.96]
[1759851734213,7.77772258,222.78,222.72,36.94]
[1759851734394,7.77772258,222.81,222.72,36.94]
[1759851734707,7.77772258,222.78,222.73,37.6]
[1759851734913,0.71,222.84,222.73,37.6]
[1759851734914,0.71,222.84,222.74,0.68]
[1759851735120,7.77772258,222.81,222.74,0.68]
[1759851735286,0.71,222.88,222.75,36.9]
[1759851735485,0.71,222.91,222.76,0.68]
[1759851735691,7.77772258,222.89,222.76,0.68]
[1759851735918,7.77772258,222.86,222.76,0.68]
[1759851736387,7.77772258,222.84,222.77,36.86]
[1759851736588,7.77772258,222.82,222.76,0.68]
[1759851736789,0.71,222.87,222.77,36.86]
[1759851736988,7.77772258,222.84,222.76,0.68]
[1759851737199,7.77772258,222.85,222.77,41.30873939]
[1759851737397,7.77772258,222.85,222.78,0.68]
[1759851737996,0.71,222.9,222.78,0.68]
[1759851738200,20.8,222.87,222.77,36.82]
[1759851738417,7.77772258,222.83,222.78,36.76]
[1759851738616,20.8,222.88,222.79,0.68]
[1759851738795,20.8,222.88,222.8,36.76]
[1759851739006,7.77772258,222.86,222.79,0.68]
[1759851739196,0.71,222.9,222.81,36.74]
[1759851739398,7.77772258,222.88,222.81,41.22811139]
[1759851739900,7.77772258,222.88,222.79,0.68]
[1759851739901,7.77772258,222.85,222.79,0.68]
[1759851740103,7.77772258,222.8,222.71,35.64]
[1759851740303,7.77772258,222.76,222.72,36.72]
[1759851740505,0.71,222.76,222.71,34.96]
[1759851740725,0.71,222.76,222.72,36.7]
[1759851741034,0.71,222.79,222.72,36.7]
[1759851741228,7.77772258,222.74,222.72,36.7]
[1759851741525,0.71,222.79,222.72,36.7]
[1759851741711,7.77772258,222.88,222.71,34.96]
[1759851741712,7.77772258,222.74,222.71,34.96]
[1759851741913,7.77772258,222.73,222.72,36.66]
[1759851742303,7.77772258,222.73,222.71,34.96]
[1759851742508,0.71,222.76,222.72,36.66]
[1759851742712,20.8,222.82,222.71,34.96]
[1759851742713,0.71,222.75,222.71,34.96]
[1759851743010,0.71,222.74,222.72,33.84]
[1759851743209,0.71,222.78,222.72,33.84]
[1759851743723,7.77772258,222.73,222.72,33.84]
[1759851744317,20.8,222.76,222.72,33.84]
[1759851744619,7.77772258,222.76,222.72,33.84]
[1759851744821,4.48732154,222.86,222.72,38.32992286]
[1759851745124,7.77772258,222.81,222.73,0.68]
[1759851745324,7.77772258,222.82,222.74,4.48953937]
[1759851745525,7.77772258,222.83,222.75,0.68]
[1759851746240,6.56089955,222.95,222.75,0.68]
[1759851746429,7.77772258,222.79,222.71,34.96]
[1759851746612,20.8,222.76,222.72,36.5]
[1759851746812,7.77772258,222.76,222.72,36.5]
[1759851747019,0.69,222.78,222.72,36.5]
[1759851747020,29.26772258,222.78,222.72,36.5]
[1759851747614,0.69,222.85,222.73,5.16974094]
[1759851747810,7.77772258,222.83,222.73,0.68]
[1759851748026,20.8,222.8,222.73,0.68]
[1759851748227,20.8,222.8,222.72,36.5]
[1759851748420,20.8,222.8,222.71,34.96]
[1759851748630,8.46772258,222.8,222.71,34.96]
[1759851748833,8.46772258,222.8,222.72,36.46]
[1759851749025,0.69,222.8,222.72,36.46]
[1759851749226,0.69,222.84,222.72,37.14]
[1759851749433,0.69,222.84,222.73,40.94974094]
[1759851749640,20.8,222.79,222.73,40.94974094]
[1759851750132,7.77772258,222.8,222.73,40.94974094]
[1759851750439,20.8,222.82,222.74,0.68]
[1759851750738,7.77772258,222.87,222.74,0.68]
[1759851750942,0.69,222.89,222.74,0.68]
[1759851751136,7.77772258,222.88,222.74,0.68]
[1759851751341,7.77772258,222.83,222.74,5.1694279]
[1759851751523,7.77772258,222.8,222.75,36.4]
[1759851751725,7.77772258,222.78,222.76,36.38]
[1759851751936,8.46772258,222.78,222.77,36.38]
[1759851752935,20.8,222.83,222.77,36.38]
[1759851752936,28.57772258,222.83,222.77,36.38]
[1759851753137,0.69,222.9,222.78,0.68]
[1759851753318,8.46772258,222.9,222.78,0.68]
[1759851753518,8.46772258,222.9,222.79,4.4885318]
[1759851753716,8.46772258,222.9,222.79,15.7098613]
[1759851753916,8.46772258,222.91,222.8,0.68]
[1759851754117,7.77772258,222.91,222.8,0.68]
[1759851754339,28.57772258,222.92,222.8,0.68]
[1759851754544,7.77772258,222.91,222.8,0.68]
[1759851754851,7.77772258,222.9,222.8,0.68]
[1759851755013,0.69,222.91,222.81,36.32]
[1759851755014,28.57772258,222.89,222.81,36.32]
[1759851755347,20.8,222.89,222.81,36.32]
[1759851755643,7.77772258,222.87,222.8,4.48828656]
[1759851755839,0.69,222.88,222.81,36.3]
[1759851756043,51.64516335,223.08,222.84,20.8]
[1759851756044,3.54782242,222.98,222.84,20.8]
[1759851756238,7.30358169,223.06,222.85,0.68]
[1759851756239,6.47728275,223.01,222.85,0.68]
[1759851756436,0.69,222.97,222.86,30.54]
[1759851756942,7.77772258,222.95,222.86,30.54]
[1759851757245,7.77772258,223.04,222.77,38.15590792]
[1759851757246,0.69,222.94,222.87,36.3]
[1759851757645,7.77772258,222.91,222.87,36.3]
[1759851757850,0.69,222.94,222.82,0.68]
[1759851758158,0.69,222.94,222.83,36.28]
[1759851758333,0.69,222.99,222.84,0.68]
[1759851758851,7.77772258,222.96,222.86,20.8]
[1759851759037,7.77772258,222.95,222.87,0.67]
[1759851759227,21.49,222.99,222.87,0.67]
[1759851759658,0.69,222.99,222.85,21.47]
[1759851759823,7.77772258,222.95,222.88,36.24]
[1759851760540,7.77772258,222.98,222.89,0.67]
[1759851760747,0.2,223.06,222.91,20.8]
[1759851761038,0.2,223.08,222.95,20.8]
[1759851761219,0.2,223.08,222.99,20.8]
[1759851761424,0.2,223.08,223.0,0.44843049]
[1759851761623,0.2,223.08,223.04,20.8]
[1759851762046,0.2,223.08,223.05,0.67]
[1759851762237,0.2,223.08,223.06,0.67]
[1759851762438,0.2,223.08,223.07,36.52]
[1759851762858,0.2,223.08,223.07,37.19]
[1759851763159,0.2,223.08,223.04,20.8]
[1759851763351,0.2,223.08,223.0,0.67]
[1759851763560,0.2,223.08,223.01,61.74398879]
[1759851763856,0.2,223.08,223.02,0.67]
[1759851765466,0.2,223.08,223.03,36.38]
[1759851765640,0.2,223.08,223.03,37.05]
[1759851765963,0.2,223.08,223.04,0.67]
[1759851766465,0.2,223.08,223.03,36.38]
[1759851766646,0.2,223.08,223.04,0.67]
[1759851766847,0.2,223.08,223.05,0.67]
[1759851767064,0.2,223.08,223.06,21.47]
[1759851767263,0.2,223.08,223.04,0.67]
[1759851767438,0.2,223.08,223.05,0.67]
[1759851767766,0.2,223.08,223.06,0.67]
[1759851768064,0.2,223.08,223.07,0.67]
[1759851769139,0.2,223.08,223.07,36.24]
[1759851769355,0.2,223.08,223.04,0.44835007]
[1759851769545,0.2,223.08,223.03,4.48366303]
[1759851769546,0.2,223.08,223.05,36.93]
[1759851769855,0.2,223.08,223.05,41.41326758]
[1759851770033,0.2,223.08,223.05,40.74326758]
[1759851770233,0.2,223.08,223.05,41.41326758]
[1759851770458,0.2,223.08,223.05,40.74326758]
[1759851770663,0.2,223.08,223.05,41.41326758]
[1759851771457,0.2,223.08,223.05,40.74326758]
[1759851771647,0.2,223.08,223.05,41.41326758]
[1759851772052,0.2,223.08,223.06,0.67]
[1759851772360,0.2,223.08,223.05,40.74326758]
[1759851772747,0.2,223.08,223.05,41.41326758]
[1759851772946,0.2,223.08,223.05,4.48327759]
[1759851773148,0.2,223.08,223.06,36.16]
[1759851773861,0.2,223.08,223.06,36.83]
[1759851774349,0.2,223.13,223.07,0.67]
[1759851774755,20.8,223.12,223.07,0.67]
[1759851774949,20.8,223.12,223.08,0.67]
[1759851775152,20.8,223.12,223.09,0.67]
[1759851775355,20.8,223.12,223.06,5.60139399]
[1759851775555,0.2,223.13,223.06,4.48308412]
[1759851775757,0.2,223.13,223.07,36.06]
[1759851776076,8.43772258,223.12,223.08,36.04]
[1759851776261,0.66,223.11,223.08,36.04]
[1759851776444,0.66,223.1,223.09,36.06]
[1759851776973,8.43772258,223.1,222.99,0.67]
[1759851777142,0.66,223.1,223.0,36.06]
[1759851777464,7.77772258,223.09,223.0,36.06]
[1759851777670,25.48181402,223.13,223.0,36.06]
[1759851777671,8.46772258,223.08,223.0,36.06]
[1759851777871,8.46772258,223.08,223.0,4.48430216]
[1759851778076,0.69,223.08,223.01,36.04]
[1759851778445,7.77772258,223.07,223.01,36.04]
[1759851778646,7.77772258,223.07,222.96,55.78]
[1759851778848,0.69,223.08,222.97,35.98]
[1759851779144,0.69,223.08,222.97,36.67]
[1759851779654,8.46772258,223.08,222.97,36.67]
[1759851779976,8.46772258,223.08,222.97,41.15470767]
[1759851780178,0.69,223.08,222.97,5.17470767]
[1759851780470,7.77772258,223.03,222.96,34.98]
[1759851780676,7.77772258,223.02,222.98,35.92]
[1759851780854,8.46772258,223.02,222.99,35.92]
[1759851781175,7.77772258,223.0,222.96,34.98]
[1759851781485,7.77772258,222.97,222.96,34.98]
[1759851781777,8.46772258,222.97,222.96,34.98]
[1759851781962,12.95263086,222.97,222.96,70.88]
[1759851782270,20.8,222.94,222.82,4.58785408]
[1759851782566,7.77772258,222.92,222.83,36.59]
[1759851782772,0.69,222.94,222.83,36.59]
[1759851782977,7.77772258,222.91,222.83,36.59]
[1759851784148,7.77772258,222.88,222.84,35.82]
[1759851784458,7.77772258,222.86,222.84,35.82]
[1759851784648,7.77772258,222.85,222.84,35.82]
[1759851785057,20.8,222.91,222.84,35.82]
[1759851785261,28.57772258,222.91,222.84,36.51]
[1759851785460,0.69,222.97,222.85,0.69]
[1759851786087,7.77772258,222.94,222.86,40.30712195]
[1759851786385,7.77772258,222.95,222.86,40.30712195]
[1759851786562,0.69,222.97,222.86,40.30712195]
[1759851786563,7.77772258,222.96,222.86,40.30712195]
[1759851786767,7.77772258,222.95,222.86,40.30712195]
[1759851787078,21.49,222.97,222.87,0.69]
[1759851787282,29.26772258,222.97,222.87,0.69]
[1759851787492,7.77772258,222.96,222.87,0.69]
[1759851787657,21.49,222.99,222.87,0.69]
[1759851787859,28.57772258,222.98,222.87,0.69]
[1759851788174,28.57772258,222.98,222.88,4.48671931]
[1759851788374,7.77772258,222.95,222.84,20.8]
[1759851788577,7.77772258,222.94,222.85,40.20714603]
[1759851788813,0.69,222.95,222.85,4.48714603]
[1759851788814,7.77772258,222.93,222.85,4.48714603]
[1759851788964,7.77772258,222.94,222.86,35.72]
[1759851789170,4.48418816,223.01,222.87,0.69]
[1759851789171,20.8,222.98,222.87,0.69]
[1759851789486,7.77772258,222.97,222.87,0.69]
[1759851789780,0.69,222.97,222.87,0.69]
[1759851789990,0.69,223.02,222.9,4.48631673]
[1759851790190,7.77772258,223.01,222.91,36.37]
[1759851790486,0.69,223.02,222.91,36.37]
[1759851790789,8.46772258,223.02,222.91,36.37]
[1759851790986,7.77772258,223.1,222.94,20.8]
[1759851791188,0.69,223.11,222.95,0.69]
[1759851791490,20.8,223.09,222.99,20.8]
[1759851791691,0.69,223.08,222.95,0.69]
[1759851791989,4.87396423,222.96,222.85,0.69]
[1759851792185,4.87396423,222.91,222.86,10.24]
[1759851792366,0.69,222.95,222.86,14.72711077]
[1759851792780,4.87396423,222.9,222.82,0.1]
[1759851792998,20.8,222.91,222.83,35.72]
[1759851792999,4.87396423,222.89,222.83,35.72]
[1759851793387,4.87396423,222.88,222.83,35.72]
[1759851793703,4.87396423,222.85,222.82,0.1]
[1759851793876,0.69,222.87,222.83,35.78]
[1759851794083,20.8,222.92,222.82,0.1]
[1759851794084,4.87396423,222.84,222.82,0.1]
[1759851794284,0.69,222.86,222.82,0.1]
[1759851794285,20.8,222.83,222.82,0.1]
[1759851794602,26.36396423,222.83,222.82,0.1]
[1759851794809,26.36396423,222.83,222.82,35.86]
[1759851795303,5.56396423,222.83,222.82,35.86]
[1759851796619,4.87396423,222.83,222.82,35.86]
[1759851796826,20.8,222.83,222.82,35.86]
[1759851797039,0.69,222.87,222.82,35.86]
[1759851797498,20.8,222.92,222.82,35.86]
[1759851797689,4.87396423,222.86,222.82,35.86]
[1759851797890,20.8,222.92,222.82,35.86]
[1759851798092,4.87396423,222.85,222.82,35.86]
[1759851798306,5.56396423,222.85,222.82,35.86]
[1759851798697,0.69,222.9,222.82,35.86]
[1759851798908,0.69,222.9,222.82,40.34788043]
[1759851798909,4.87396423,222.9,222.82,40.34788043]
[1759851799203,11.20824927,223.05,222.82,40.34788043]
[1759851799388,4.87396423,222.95,222.85,20.8]
[1759851799995,20.8,223.02,222.86,0.69]
[1759851800190,20.8,222.98,222.87,40.1468028]
[1759851800398,4.87396423,222.97,222.87,40.1468028]
[1759851800708,0.69,222.98,222.88,0.69]
[1759851800905,0.69,223.01,222.88,0.69]
[1759851801130,4.87396423,222.98,222.88,0.69]
[1759851801495,0.69,223.01,222.88,0.69]
[1759851801991,4.87396423,222.99,222.88,0.69]
[1759851802200,25.67396423,222.98,222.89,4.48651801]
[1759851802411,20.8,222.98,222.89,4.48651801]
[1759851802715,4.48387179,223.03,222.89,4.48651801]
[1759851802716,4.87396423,223.03,222.92,20.8]
[1759851803008,0.69,223.02,222.93,35.62]
[1759851803216,4.87396423,223.0,222.93,35.62]
[1759851803394,0.69,223.02,222.93,35.62]
[1759851803589,4.87396423,223.01,222.93,35.62]
[1759851803785,4.87396423,223.0,222.9,0.69]
[1759851803989,4.87396423,222.94,222.85,0.69]
[1759851804193,4.87396423,222.94,222.74,22.44689386]
[1759851804194,4.87396423,222.91,222.86,35.58]
[1759851804413,4.87396423,222.9,222.86,35.58]
[1759851804600,0.69,222.91,222.86,35.58]
[1759851804798,4.87396423,222.9,222.86,35.58]
[1759851805215,4.87396423,222.91,222.86,35.58]
[1759851805404,4.48555314,222.94,222.86,35.58]
[1759851805713,4.87396423,222.9,222.86,35.58]
[1759851805915,4.87396423,222.89,222.86,35.58]
[1759851806215,4.87396423,222.9,222.86,35.58]
[1759851806408,4.87396423,222.89,222.86,35.58]
[1759851806713,4.87396423,222.89,222.87,35.54]
[1759851806917,4.87396423,222.9,222.88,35.54]
[1759851807413,4.87396423,222.89,222.88,35.54]
[1759851807614,4.87396423,222.89,222.88,35.52]
[1759851807994,0.68,222.9,222.88,35.52]
[1759851808196,25.2855311,222.94,222.88,35.52]
[1759851808197,21.48,222.94,222.88,35.52]
[1759851808408,20.8,222.92,222.88,35.52]
[1759851808601,0.68,222.91,222.88,35.52]
[1759851808808,4.87396423,222.89,222.88,35.52]
[1759851809496,5.55396423,222.89,222.82,0.1]
[1759851809699,4.87396423,222.86,222.83,35.46]
[1759851810095,4.87396423,222.89,222.84,0.67]
[1759851810295,0.68,222.93,222.84,0.67]
[1759851810496,0.68,222.97,222.84,0.67]
[1759851810717,4.87396423,222.94,222.84,0.67]
[1759851810927,13.46468885,223.11,222.84,0.67]
[1759851811220,4.87396423,222.93,222.84,0.67]
[1759851811434,4.87396423,222.9,222.85,35.42]
[1759851811600,0.68,222.92,222.85,35.42]
[1759851811804,4.87396423,222.9,222.85,35.42]
[1759851812006,20.8,222.95,222.82,0.1]
[1759851812007,4.87396423,222.87,222.82,0.1]
[1759851812206,4.87396423,222.87,222.86,35.42]
[1759851812393,5.55396423,222.87,222.86,35.42]
[1759851812826,5.55396423,222.87,222.82,0.1]
[1759851813021,4.87396423,222.84,222.83,35.4]
[1759851813321,4.87396423,222.86,222.83,35.4]
[1759851813518,4.87396423,222.84,222.83,35.4]
[1759851813725,5.55396423,222.84,222.82,0.1]
[1759851813925,0.68,222.84,222.83,35.38]
[1759851814215,5.55396423,222.84,222.83,35.38]
[1759851814604,0.68,222.88,222.83,35.38]
[1759851814804,4.87396423,222.85,222.83,35.38]
[1759851815304,4.87396423,222.87,222.83,35.38]
[1759851815510,0.68,222.97,222.84,0.67]
[1759851815830,0.68,223.01,222.86,20.8]
[1759851816124,0.68,223.01,222.87,0.67]
[1759851816328,4.87396423,222.97,222.87,0.67]
[1759851816546,4.87396423,222.96,222.88,35.36]
[1759851816703,4.87396423,222.94,222.85,0.67]
[1759851817022,0.68,222.94,222.86,35.34]
[1759851817204,4.87396423,222.91,222.86,35.34]
[1759851817408,4.87396423,222.89,222.82,0.1]
[1759851817727,0.68,222.9,222.82,0.1]
[1759851817728,4.87396423,222.88,222.83,35.34]
[1759851818021,4.87396423,222.86,222.84,35.32]
[1759851818721,5.53396423,222.85,222.82,0.1]
[1759851819034,4.87396423,222.84,222.83,35.3]
[1759851819323,20.8,222.86,222.83,35.3]
[1759851819538,5.53396423,222.85,222.82,0.1]
[1759851819705,4.87396423,222.83,222.82,0.1]
[1759851819902,4.87396423,222.83,222.82,35.38]
[1759851820927,4.87396423,222.83,222.82,0.1]
[1759851820928,5.53396423,222.83,222.82,0.1]
[1759851821119,5.53396423,222.83,222.82,35.34]
[1759851821606,5.53396423,222.83,222.82,0.1]
[1759851822027,5.53396423,222.83,222.82,35.32]
[1759851822232,5.53396423,222.83,222.82,0.1]
[1759851822527,0.66,222.83,222.82,0.1]
[1759851822736,0.66,222.83,222.82,35.32]
[1759851822935,5.53396423,222.83,222.82,35.32]
[1759851823111,5.53396423,222.83,222.82,35.3]
[1759851823712,10.40792846,222.83,222.82,35.3]
[1759851823918,5.53396423,222.83,222.82,35.3]
[1759851824115,15.70774615,222.82,222.65,0.67]
[1759851824333,4.87396423,222.73,222.66,35.16]
[1759851824532,0.66,222.77,222.66,35.16]
[1759851824728,4.87396423,222.74,222.66,39.6511237]
[1759851825642,4.87396423,222.74,222.66,35.16]
[1759851825840,5.14895482,222.77,222.66,35.16]
[1759851825841,4.87396423,222.72,222.66,35.16]
[1759851826050,4.87396423,222.71,222.66,35.16]
[1759851826412,4.87396423,222.71,222.66,35.83]
[1759851826638,4.87396423,222.71,222.66,35.16]
[1759851826958,21.46,222.74,222.66,35.16]
[1759851826959,4.87396423,222.69,222.66,35.16]
[1759851827143,4.87396423,222.69,222.67,35.1]
[1759851827638,20.8,222.74,222.67,35.1]
[1759851827639,4.87396423,222.7,222.67,35.1]
[1759851828130,20.8,222.79,222.67,35.77]
[1759851828330,4.87396423,222.73,222.67,35.77]
[1759851828649,4.87396423,222.75,222.67,40.26083813]
[1759851828939,4.87396423,222.77,222.68,0.67]
[1759851829437,4.87396423,222.76,222.68,0.67]
[1759851829644,4.87396423,222.74,222.67,35.1]
[1759851830134,4.87396423,222.76,222.67,39.59092983]
[1759851830339,0.66,222.78,222.67,5.16092983]
[1759851830530,4.87396423,222.76,222.69,4.49054739]
[1759851830934,4.87396423,222.75,222.68,39.53074748]
[1759851831240,0.66,222.78,222.69,35.02]
[1759851831658,4.87396423,222.76,222.69,35.02]
[1759851831828,20.8,222.75,222.69,35.02]
[1759851832029,4.87396423,222.74,222.69,35.02]
[1759851832332,4.87396423,222.72,222.7,35.0]
[1759851832530,0.66,222.73,222.7,35.0]
[1759851832736,4.87396423,222.72,222.7,35.0]
[1759851833137,20.8,222.75,222.7,35.0]
[1759851833322,20.8,222.79,222.64,0.1]
[1759851833527,4.87396423,222.69,222.65,7.72]
[1759851833863,20.8,222.71,222.65,7.72]
[1759851833864,25.67396423,222.71,222.66,0.67]
[1759851834342,20.8,222.71,222.65,7.72]
[1759851834534,0.66,222.74,222.65,7.72]
[1759851834737,4.87396423,222.73,222.66,5.16108869]
[1759851834945,4.87396423,222.74,222.66,5.16108869]
[1759851835328,4.87396423,222.72,222.66,5.16108869]
[1759851835525,4.87396423,222.71,222.65,7.72]
[1759851835725,21.46,222.73,222.65,7.72]
[1759851835930,4.87396423,222.69,222.66,34.98]
[1759851836229,4.87396423,222.7,222.66,34.98]
[1759851836427,4.87396423,222.69,222.66,34.98]
[1759851836653,4.87396423,222.67,222.64,0.1]
[1759851836939,4.87396423,222.67,222.65,34.98]
[1759851837443,4.87396423,222.67,222.66,34.98]
[1759851838365,4.87396423,222.71,222.66,35.69]
[1759851838560,20.8,222.73,222.66,35.69]
[1759851838859,4.87396423,222.68,222.66,34.98]
[1759851839434,4.87396423,222.67,222.64,0.1]
[1759851839634,4.87396423,222.66,222.65,34.98]
[1759851839854,4.87396423,222.66,222.64,0.1]
[1759851840150,4.87396423,222.65,222.64,0.1]
[1759851840350,20.8,222.72,222.64,35.08]
[1759851840535,20.8,222.7,222.64,35.08]
[1759851840743,4.87396423,222.68,222.64,35.08]
[1759851840935,4.87396423,222.65,222.64,0.1]
[1759851841151,4.87396423,222.65,222.64,35.08]
[1759851841563,0.7,222.7,222.64,35.08]
[1759851842062,4.87396423,222.66,222.64,35.08]
[1759851842859,0.7,222.74,222.64,35.08]
[1759851843045,4.87396423,222.7,222.65,0.71]
[1759851843445,4.87396423,222.69,222.64,35.08]
[1759851843670,4.87396423,222.66,222.64,0.1]
[1759851843843,0.7,222.68,222.65,34.98]
[1759851844039,4.87396423,222.66,222.64,0.1]
[1759851844259,4.87396423,222.65,222.64,0.1]
[1759851844563,4.87396423,222.65,222.64,35.08]
[1759851844778,0.7,222.72,222.64,35.08]
[1759851844944,4.87396423,222.65,222.64,0.1]
[1759851845136,4.87396423,222.65,222.64,35.08]
[1759851845441,5.57396423,222.65,222.64,0.1]
[1759851845843,4.87396423,222.61,222.6,0.1]
[1759851846150,4.87396423,222.61,222.6,20.22]
[1759851846351,0.7,222.67,222.6,20.22]
[1759851846552,4.48955845,222.74,222.6,20.22]
[1759851846866,4.87396423,222.64,222.6,20.22]
[1759851847354,4.87396423,222.63,222.6,20.22]
[1759851847660,4.87396423,222.62,222.6,20.22]
[1759851847860,4.87396423,222.62,222.6,0.1]
[1759851848066,0.7,222.62,222.61,34.98]
[1759851848264,5.57396423,222.62,222.61,34.98]
[1759851848471,0.7,222.62,222.61,34.98]
[1759851848642,0.7,222.62,222.6,0.1]
[1759851848986,25.29118258,222.66,222.6,0.1]
[1759851849140,36.51906365,222.66,222.59,0.1]
[1759851849444,0.7,222.65,222.59,0.1]
[1759851849637,0.7,222.65,222.53,35.0]
[1759851849851,0.7,222.64,222.54,34.98]
[1759851850150,20.8,222.54,222.53,35.0]
[1759851850346,26.37396423,222.54,222.53,69.98]
[1759851850572,26.37396423,222.54,222.53,35.0]
[1759851850743,26.37396423,222.54,222.53,69.98]
[1759851850943,30.86753841,222.54,222.53,35.0]
[1759851851145,33.79720678,222.54,222.53,69.98]
[1759851851567,21.5,222.54,222.53,69.98]
[1759851851743,8.5036326,222.54,222.53,69.98]
[1759851851943,12.99720678,222.54,222.53,69.98]
[1759851852151,12.99720678,222.54,222.53,35.0]
[1759851852470,12.99720678,222.54,222.49,0.1]
[1759851852471,20.8,222.51,222.49,0.1]
[1759851852672,7.8036326,222.5,222.49,0.1]
[1759851852876,7.8036326,222.5,222.49,35.08]
[1759851853446,8.5036326,222.5,222.49,35.08]
[1759851853651,12.99801462,222.5,222.49,35.08]
[1759851853859,12.99801462,222.5,222.49,0.1]
[1759851854257,0.7,222.5,222.49,0.1]
[1759851854475,8.5036326,222.5,222.49,0.1]
[1759851854678,12.99801462,222.5,222.49,0.1]
[1759851855880,12.99801462,222.5,222.49,1e-08]
[1759851856074,20.8,222.47,222.44,34.98]
[1759851856390,7.8036326,222.45,222.44,34.98]
[1759851856577,8.5036326,222.45,222.43,0.1]
[1759851856772,20.8,222.41,222.4,34.98]
[1759851856977,20.8,222.41,222.11,13.48]
[1759851856978,20.8,222.37,222.13,27.48110962]
[1759851857274,21.5,222.37,222.36,33.26]
[1759851857657,29.3036326,222.37,222.36,33.26]
[1759851858070,29.3036326,222.37,222.28,0.71]
[1759851858268,20.8,222.37,222.36,34.98]
[1759851858471,28.6036326,222.37,222.36,34.98]
[1759851858673,7.8036326,222.37,222.36,34.98]
[1759851858982,29.3036326,222.37,222.36,34.98]
[1759851859169,33.80064208,222.37,222.36,35.0]
[1759851859475,45.0431658,222.37,222.21,0.71]
[1759851859672,37.2395332,222.37,222.22,34.98]
[1759851859981,7.8036326,222.28,222.23,0.71]
[1759851860151,20.8,222.32,222.23,0.71]
[1759851860483,7.8036326,222.31,222.24,0.71]
[1759851861387,0.7,222.36,222.24,0.71]
[1759851861561,20.8,222.29,222.24,0.71]
[1759851861755,21.5,222.29,222.2,0.71]
[1759851862059,7.8036326,222.24,222.2,0.71]
[1759851862261,7.8036326,222.24,222.21,35.0]
[1759851862474,7.8036326,222.22,222.19,0.71]
[1759851862788,0.7,222.25,222.2,35.0]
[1759851862993,3.61705274,222.32,222.0,0.1]
[1759851862994,20.8,222.18,222.0,0.1]
[1759851863159,20.8,222.14,222.02,0.71]
[1759851863365,7.8036326,222.05,222.03,28.84]
[1759851863666,0.7,222.11,222.03,28.84]
[1759851863992,7.8036326,222.04,222.0,0.1]
[1759851864168,0.7,222.1,222.01,35.14]
[1759851864365,20.8,222.14,222.02,0.71]
[1759851864567,11.25082543,222.21,222.02,0.71]
[1759851864568,0.7,222.2,222.02,0.71]
[1759851864777,21.32232218,222.24,222.04,20.8]
[1759851864778,0.7,222.23,222.04,20.8]
[1759851864969,13.51868958,222.24,222.05,0.71]
[1759851865287,0.7,222.26,222.1,20.8]
[1759851865288,7.8036326,222.19,222.1,20.8]
[1759851865455,7.8036326,222.21,222.11,0.71]